fUST/lending_fUST_20260121
["ID","MTS","AMOUNT","RATE_DAILY","PERIOD"]
[402848307,1768931432302,-4726.97091618,0.00019899,2]
[402848349,1768931437709,-507.61,0.00019178,2]
[402848351,1768931437719,-2386.38,0.00019899,2]
[402848353,1768931437730,-1791.95,0.00019899,2]
[402848357,1768931437759,-9384.95476025,0.00019899,2]
[402848501,1768931439915,-317.42357411,0.00018986,10]
[402848507,1768931439971,-4009.53252614,0.00018986,10]
[402848701,1768931442817,-673.04389975,0.00018986,10]
[402848702,1768931442828,-1468.81534326,0.00019899,2]
[402848703,1768931442839,-660.112334,0.00019899,2]
[402848704,1768931442921,-17617.62716016,0.00019899,2]
[402848710,1768931442976,-2041.08499773,0.00019899,2]
[402848712,1768931442987,-568.54451647,0.00019899,2]
[402848720,1768931444958,500.0,0.00027397,120]
[402848744,1768931445784,-3566.81084808,0.00019899,2]
[402848745,1768931445796,-1679.9693835,0.00019899,2]
[402848753,1768931561147,500.0,0.00027397,120]
[402848754,1768931636597,500.0,0.00027397,120]
[402848755,1768931636833,356.83052159,0.00027397,120]
[402848756,1768931650874,500.0,0.00027397,120]
[402848757,1768931651150,385.45095881,0.00027397,120]
[402848758,1768931675548,500.0,0.00027397,120]
[402848759,1768931675782,500.0,0.00027397,120]
[402848760,1768931676027,500.0,0.00027397,120]
[402848761,1768931676268,515.71363238,0.00027397,120]
[402848762,1768931720634,500.0,0.00027397,120]
[402848763,1768931720879,500.0,0.00027397,120]
[402848764,1768931721118,500.0,0.00027397,120]
[402848765,1768931721362,500.0,0.00027397,120]
[402848767,1768931766035,500.0,0.00027397,120]
[402848768,1768931766274,500.0,0.00027397,120]
[402848769,1768931768300,500.0,0.00027397,120]
[402848770,1768931768566,500.0,0.00027397,120]
[402848771,1768931768838,500.0,0.00027397,120]
[402848772,1768931769081,500.0,0.00027397,120]
[402848778,1768931933892,299.49037579,0.00027397,120]
[402848779,1768931970062,277.37336634,0.00027397,120]
[402848780,1768931973418,259.47517722,0.00027397,120]
[402848781,1768931983703,511.42,0.00027397,120]
[402848782,1768932026817,500.0,0.00027397,120]
[402848783,1768932027069,500.0,0.00027397,120]
[402848784,1768932034876,500.0,0.00027397,120]
[402848785,1768932035076,455.03,0.00027397,120]
[402848786,1768932058238,500.0,0.00027397,120]
[402848787,1768932058639,500.0,0.00027397,120]
[402848788,1768932058768,500.0,0.00027397,120]
[402848789,1768932058965,500.0,0.00027397,120]
[402848790,1768932059247,500.0,0.00027397,120]
[402848795,1768932203758,500.0,0.00027397,120]
[402848796,1768932203994,625.06,0.00027397,120]
[402848797,1768932218501,500.0,0.00027397,120]
[402848798,1768932218727,500.0,0.00027397,120]
[402848799,1768932218987,500.0,0.00027397,120]
[402848800,1768932219227,500.0,0.00027397,120]
[402848801,1768932219450,500.0,0.00027397,120]
[402848802,1768932219690,500.0,0.00027397,120]
[402848803,1768932219938,500.0,0.00027397,120]
[402848804,1768932220167,500.0,0.00027397,120]
[402848805,1768932220405,500.0,0.00027397,120]
[402848806,1768932220638,500.0,0.00027397,120]
[402848807,1768932220872,500.0,0.00027397,120]
[402848808,1768932221109,500.0,0.00027397,120]
[402848809,1768932221481,500.0,0.00027397,120]
[402848810,1768932221709,500.0,0.00027397,120]
[402848811,1768932221988,500.0,0.00027397,120]
[402848812,1768932222214,500.0,0.00027397,120]
[402848813,1768932222587,500.0,0.00027397,120]
[402848814,1768932222714,323.40952759,0.00027397,120]
[402848892,1768932560930,500.0,0.00027397,120]
[402848893,1768932561167,500.0,0.00027397,120]
[402848894,1768932561451,500.0,0.00027397,120]
[402848895,1768932561677,500.0,0.00027397,120]
[402848929,1768932631759,-300.0,8.998e-05,2]
[402848930,1768932631769,-541.6034007,9.701e-05,10]
[402848934,1768932631811,-600.0,9.701e-05,10]
[402848936,1768932631822,-3858.3965993,9.701e-05,10]
[402848938,1768932631832,-300.0,9.996e-05,2]
[402848940,1768932631843,-300.0,9.996e-05,2]
[402848942,1768932631852,-300.0,9.996e-05,2]
[402848944,1768932631861,-1200.0,9.996e-05,2]
[402848946,1768932631875,-300.0,9.996e-05,2]
[402848948,1768932631884,-300.0,9.996e-05,2]
[402848950,1768932631894,-50000.0,9.997e-05,2]
[402848953,1768932631903,-500.0,9.997e-05,2]
[402848956,1768932631912,-326.91391982,9.997e-05,2]
[402848959,1768932631921,-223.327689,9.997e-05,2]
[402848962,1768932631931,-485.55744002,9.997e-05,2]
[402848964,1768932631941,-231.84198277,9.997e-05,2]
[402848967,1768932631950,-169.696,9.999e-05,2]
[402848970,1768932631959,-41453.17427493,0.0001,2]
[402848973,1768932631970,-1410.72508389,0.0001,2]
[402849004,1768932637886,-27579.76064118,0.0001,2]
[402849006,1768932637895,-152.14495986,0.0001,2]
[402849008,1768932637905,-151.0,0.0001,2]
[402849010,1768932637914,-151.0,0.0001,2]
[402849012,1768932637923,-151.0,0.0001,2]
[402849014,1768932637934,-151.0,0.0001,2]
[402849016,1768932637944,-151.0,0.0001,2]
[402849018,1768932637954,-151.0,0.0001,2]
[402849020,1768932637966,-151.0,0.0001,2]
[402849022,1768932637975,-151.0,0.0001,2]
[402849024,1768932637985,-151.0,0.0001,2]
[402849026,1768932637994,-151.0,0.0001,2]
[402849028,1768932638004,-151.0,0.0001,2]
[402849030,1768932638013,-151.0,0.0001,2]
[402849033,1768932638023,-151.0,0.0001,2]
[402849035,1768932638032,-151.0,0.0001,2]
[402849038,1768932638042,-286.23816441,0.0001,2]
[402849040,1768932638051,-177.0,0.00011898,2]
[402849042,1768932638061,-1000.0,0.00013699,2]
[402849044,1768932638070,-204.0,0.00013898,2]
[402849046,1768932638080,-1041.66666667,0.00014824,2]
[402849048,1768932638090,-231.0,0.00015898,2]
[402849050,1768932638099,-161.0,0.00016082,3]
[402849052,1768932638109,-2778.37854518,0.00016866,2]
[402849054,1768932638118,-3300.7142699,0.00016913,2]
[402849056,1768932638128,-1181.99287457,0.0001693,2]
[402849058,1768932638137,-4727.9714983,0.0001693,2]
[402849060,1768932638146,-258.0,0.00017898,2]
[402849062,1768932638156,-2000.0,0.00018749,7]
[402849064,1768932638166,-303.10001603,0.000189,2]
[402849066,1768932638175,-303.10001603,0.000189,2]
[402849068,1768932638184,-303.10001603,0.00019089,2]
[402849070,1768932638193,-303.10001603,0.00019089,2]
[402849072,1768932638203,-676.81,0.00019178,2]
[402849074,1768932638212,-200.0,0.00019178,2]
[402849076,1768932638221,-846.0132,0.00019178,2]
[402849078,1768932638231,-846.0132,0.00019178,2]
[402849080,1768932638241,-846.0132,0.00019178,2]
[402849082,1768932638251,-846.0132,0.00019178,2]
[402849084,1768932638260,-338.4,0.00019178,2]
[402849086,1768932638272,-846.0132,0.00019178,2]
[402849088,1768932638281,-303.10001603,0.00019278,2]
[402849090,1768932638291,-303.10001603,0.00019278,2]
[402849092,1768932638301,-303.10001603,0.00019467,2]
[402849094,1768932638312,-303.10001603,0.00019467,2]
[402849096,1768932638322,-151.0,0.000195,2]
[402849098,1768932638331,-2000.0,0.00019552,7]
[402849100,1768932638341,-884.0,0.00019589,2]
[402849102,1768932638350,-500.0,0.00019589,2]
[402849104,1768932638360,-150.32930833,0.00019589,2]
[402849106,1768932638371,-500.0,0.00019589,2]
[402849108,1768932638380,-500.0,0.00019589,2]
[402849110,1768932638390,-500.0,0.00019589,2]
[402849112,1768932638400,-500.0,0.00019589,2]
[402849114,1768932638410,-500.0,0.00019589,2]
[402849116,1768932638419,-500.0,0.00019589,2]
[402849118,1768932638429,-500.0,0.00019589,2]
[402849120,1768932638439,-500.0,0.00019589,2]
[402849122,1768932638448,-150.09922003,0.00019589,2]
[402849124,1768932638458,-268.58586083,0.00019589,2]
[402849126,1768932638467,-500.0,0.00019589,2]
[402849128,1768932638476,-303.10001603,0.00019656,2]
[402849130,1768932638485,-303.10001603,0.00019656,2]
[402849132,1768932638495,-3991.81222421,0.00019699,2]
[402849296,1768932640093,-2362.81077802,0.00019699,2]
[402849306,1768932640200,-498.50505466,0.00019699,2]
[402849309,1768932640212,-799.45990284,0.00019699,2]
[402849422,1768932643076,-3781.88,0.00019699,2]
[402849423,1768932643088,-5151.81426372,0.00019699,2]
[402849424,1768932643235,-962.1005026,0.00019699,2]
[402849437,1768932645877,-5000.0,0.00019502,10]
[402849438,1768932645886,-4055.79039305,0.00019699,2]
[402849439,1768932645899,-1202.0,0.00019699,2]
[402849454,1768932657261,500.0,0.00027397,120]
[402849455,1768932659022,500.0,0.00027397,120]
[402849456,1768932679183,291.44099457,0.00027397,120]
[402849458,1768932685904,500.0,0.00027397,120]
[402849459,1768932686158,500.0,0.00027397,120]
[402849460,1768932686508,244.19,0.00027397,120]
[402849461,1768932693241,500.0,0.00027397,120]
[402849462,1768932695912,500.0,0.00027397,120]
[402849463,1768932696150,166.57,0.00027397,120]
[402849464,1768932701742,500.0,0.00027397,120]
[402849465,1768932701946,447.736525,0.00027397,120]
[402849466,1768932703605,500.0,0.00027397,120]
[402849467,1768932703839,234.9,0.00027397,120]
[402849468,1768932708288,500.0,0.00027397,120]
[402849469,1768932709687,570.18,0.00027397,120]
[402849470,1768932709799,500.0,0.00027397,120]
[402849471,1768932710673,500.0,0.00027397,120]
[402849472,1768932716498,500.0,0.00027397,120]
[402849473,1768932717192,500.0,0.00027397,120]
[402849474,1768932719594,500.0,0.00027397,120]
[402849475,1768932720397,500.0,0.00027397,120]
[402849476,1768932723879,500.0,0.00027397,120]
[402849477,1768932726028,500.0,0.00027397,120]
[402849478,1768932726278,500.0,0.00027397,120]
[402849479,1768932731330,500.0,0.00027397,120]
[402849480,1768932731555,500.0,0.00027397,120]
[402849481,1768932733606,578.77,0.00027397,120]
[402849482,1768932733737,500.0,0.00027397,120]
[402849483,1768932733857,500.0,0.00027397,120]
[402849484,1768932733979,500.0,0.00027397,120]
[402849485,1768932734108,500.0,0.00027397,120]
[402849486,1768932735908,500.0,0.00027397,120]
[402849487,1768932736137,500.0,0.00027397,120]
[402849488,1768932736475,574.16,0.00027397,120]
[402849489,1768932738551,500.0,0.00027397,120]
[402849490,1768932739987,500.0,0.00027397,120]
[402849491,1768932740211,377.66,0.00027397,120]
[402849492,1768932740679,500.0,0.00027397,120]
[402849493,1768932740921,500.0,0.00027397,120]
[402849494,1768932741142,500.0,0.00027397,120]
[402849495,1768932741248,500.0,0.00027397,120]
[402849496,1768932741371,604.81,0.00027397,120]
[402849497,1768932741497,233.15,0.00027397,120]
[402849502,1768932743594,500.0,0.00027397,120]
[402849503,1768932743846,174.37019357,0.00027397,120]
[402849504,1768932744452,500.0,0.00027397,120]
[402849505,1768932744592,500.0,0.00027397,120]
[402849506,1768932744893,500.0,0.00027397,120]
[402849507,1768932745155,500.0,0.00027397,120]
[402849508,1768932746338,500.0,0.00027397,120]
[402849509,1768932746602,500.0,0.00027397,120]
[402849510,1768932746920,500.0,0.00027397,120]
[402849511,1768932747201,500.0,0.00027397,120]
[402849512,1768932747440,181.4,0.00027397,120]
[402849513,1768932750938,500.0,0.00027397,120]
[402849514,1768932751186,251.23,0.00027397,120]
[402849515,1768932751305,500.0,0.00027397,120]
[402849516,1768932751502,500.0,0.00027397,120]
[402849517,1768932751717,152.28,0.00027397,120]
[402849518,1768932756702,500.0,0.00027397,120]
[402849519,1768932756935,357.01,0.00027397,120]
[402849520,1768932758328,500.0,0.00027397,120]
[402849521,1768932758873,500.0,0.00027397,120]
[402849522,1768932759126,190.28,0.00027397,120]
[402849523,1768932759277,500.0,0.00027397,120]
[402849524,1768932760453,500.0,0.00027397,120]
[402849525,1768932760616,500.0,0.00027397,120]
[402849526,1768932760725,310.68,0.00027397,120]
[402849527,1768932760851,500.0,0.00027397,120]
[402849528,1768932761289,500.0,0.00027397,120]
[402849529,1768932761508,469.51,0.00027397,120]
[402849530,1768932762568,500.0,0.00027397,120]
[402849531,1768932762783,500.0,0.00027397,120]
[402849532,1768932763195,460.66,0.00027397,120]
[402849533,1768932765136,500.0,0.00027397,120]
[402849534,1768932767189,500.0,0.00027397,120]
[402849535,1768932771090,500.0,0.00027397,120]
[402849536,1768932771374,624.29,0.00027397,120]
[402849538,1768932777505,500.0,0.00027397,120]
[402849539,1768932785353,500.0,0.00027397,120]
[402849540,1768932785590,432.62,0.00027397,120]
[402849541,1768932785708,500.0,0.00027397,120]
[402849542,1768932786161,218.04967266,0.00027397,120]
[402849543,1768932787424,643.56,0.00027397,120]
[402849544,1768932787864,500.0,0.00027397,120]
[402849545,1768932789341,500.0,0.00027397,120]
[402849546,1768932789781,500.0,0.00027397,120]
[402849547,1768932791065,500.0,0.00027397,120]
[402849548,1768932795979,500.0,0.00027397,120]
[402849549,1768932798274,500.0,0.00027397,120]
[402849550,1768932798791,500.0,0.00027397,120]
[402849551,1768932799027,629.5,0.00027397,120]
[402849552,1768932799850,500.0,0.00027397,120]
[402849553,1768932800114,500.0,0.00027397,120]
[402849554,1768932801013,500.0,0.00027397,120]
[402849555,1768932801277,500.0,0.00027397,120]
[402849556,1768932801502,500.0,0.00027397,120]
[402849557,1768932801759,500.0,0.00027397,120]
[402849558,1768932801986,500.0,0.00027397,120]
[402849559,1768932802191,500.0,0.00027397,120]
[402849560,1768932802315,500.0,0.00027397,120]
[402849561,1768932802443,587.01,0.00027397,120]
[402849562,1768932802569,259.94999997,0.00027397,120]
[402849563,1768932804285,500.0,0.00027397,120]
[402849564,1768932806137,500.0,0.00027397,120]
[402849565,1768932806274,151.72,0.00027397,120]
[402849566,1768932812621,500.0,0.00027397,120]
[402849567,1768932813260,500.0,0.00027397,120]
[402849568,1768932813508,583.59407383,0.00027397,120]
[402849569,1768932813625,500.0,0.00027397,120]
[402849570,1768932813744,624.38,0.00027397,120]
[402849571,1768932815561,500.0,0.00027397,120]
[402849572,1768932817095,500.0,0.00027397,120]
[402849573,1768932817334,193.66,0.00027397,120]
[402849574,1768932818644,500.0,0.00027397,120]
[402849575,1768932818897,500.0,0.00027397,120]
[402849576,1768932819016,500.0,0.00027397,120]
[402849577,1768932819163,500.0,0.00027397,120]
[402849578,1768932819402,500.0,0.00027397,120]
[402849579,1768932819647,224.91,0.00027397,120]
[402849580,1768932820850,500.0,0.00027397,120]
[402849581,1768932824367,500.0,0.00027397,120]
[402849582,1768932826416,500.0,0.00027397,120]
[402849583,1768932827605,618.04189693,0.00027397,120]
[402849584,1768932828411,320.26056107,0.00027397,120]
[402849585,1768932829677,500.0,0.00027397,120]
[402849586,1768932831973,500.0,0.00027397,120]
[402849587,1768932832932,500.0,0.00027397,120]
[402849588,1768932833326,442.1,0.00027397,120]
[402849589,1768932836423,500.0,0.00027397,120]
[402849590,1768932836660,500.0,0.00027397,120]
[402849591,1768932836934,350.1,0.00027397,120]
[402849592,1768932849395,500.0,0.00027397,120]
[402849593,1768932849653,500.0,0.00027397,120]
[402849594,1768932850016,485.36,0.00027397,120]
[402849595,1768932851183,500.0,0.00027397,120]
[402849596,1768932853321,500.0,0.00027397,120]
[402849597,1768932854785,500.0,0.00027397,120]
[402849598,1768932857406,500.0,0.00027397,120]
[402849599,1768932857653,500.0,0.00027397,120]
[402849600,1768932863221,500.0,0.00027397,120]
[402849601,1768932863486,500.0,0.00027397,120]
[402849602,1768932863741,443.33,0.00027397,120]
[402849603,1768932864244,500.0,0.00027397,120]
[402849604,1768932864501,500.0,0.00027397,120]
[402849605,1768932865477,500.0,0.00027397,120]
[402849606,1768932867621,500.0,0.00027397,120]
[402849607,1768932884056,500.0,0.00027397,120]
[402849608,1768932884296,500.0,0.00027397,120]
[402849609,1768932886571,500.0,0.00027397,120]
[402849610,1768932887694,500.0,0.00027397,120]
[402849611,1768932887974,500.0,0.00027397,120]
[402849612,1768932888203,475.41,0.00027397,120]
[402849613,1768932910897,500.0,0.00027397,120]
[402849614,1768932912086,500.0,0.00027397,120]
[402849615,1768932912317,500.0,0.00027397,120]
[402849616,1768932912544,153.77,0.00027397,120]
[402849617,1768932922456,500.0,0.00027397,120]
[402849618,1768932928407,500.0,0.00027397,120]
[402849619,1768932935869,500.0,0.00027397,120]
[402849620,1768932936093,500.0,0.00027397,120]
[402849621,1768932939380,500.0,0.00027397,120]
[402849622,1768932943237,500.0,0.00027397,120]
[402849623,1768932943457,275.53,0.00027397,120]
[402849624,1768932947268,500.0,0.00027397,120]
[402849625,1768932947506,467.89,0.00027397,120]
[402849626,1768932949205,500.0,0.00027397,120]
[402849627,1768932950607,500.0,0.00027397,120]
[402849628,1768932950912,500.0,0.00027397,120]
[402849629,1768932951185,524.18,0.00027397,120]
[402849630,1768932951647,500.0,0.00027397,120]
[402849631,1768932951775,500.0,0.00027397,120]
[402849632,1768932951904,501.02,0.00027397,120]
[402849633,1768932953403,616.59,0.00027397,120]
[402849634,1768932954691,500.0,0.00027397,120]
[402849635,1768932955727,601.27,0.00027397,120]
[402849636,1768932956407,500.0,0.00027397,120]
[402849637,1768932960154,500.0,0.00027397,120]
[402849638,1768932960384,247.65,0.00027397,120]
[402849639,1768932960586,500.0,0.00027397,120]
[402849640,1768932960892,200.11,0.00027397,120]
[402849641,1768932961093,500.0,0.00027397,120]
[402849642,1768932964639,500.0,0.00027397,120]
[402849643,1768932966245,500.0,0.00027397,120]
[402849644,1768932973800,500.0,0.00027397,120]
[402849645,1768932974042,222.88,0.00027397,120]
[402849646,1768932974435,500.0,0.00027397,120]
[402849647,1768932974645,500.0,0.00027397,120]
[402849648,1768932974890,633.75,0.00027397,120]
[402849649,1768932977086,500.0,0.00027397,120]
[402849650,1768932977325,489.92,0.00027397,120]
[402849651,1768932980892,500.0,0.00027397,120]
[402849652,1768932981122,260.62,0.00027397,120]
[402849653,1768932982124,538.98,0.00027397,120]
[402849655,1768932985916,500.0,0.00027397,120]
[402849656,1768932987730,500.0,0.00027397,120]
[402849657,1768932987974,231.64,0.00027397,120]
[402849658,1768932988261,500.0,0.00027397,120]
[402849659,1768932988531,638.47,0.00027397,120]
[402849660,1768932989455,500.0,0.00027397,120]
[402849661,1768932992626,500.0,0.00027397,120]
[402849662,1768932993019,500.0,0.00027397,120]
[402849663,1768932993157,500.0,0.00027397,120]
[402849664,1768932993281,440.84,0.00027397,120]
[402849665,1768932993491,500.0,0.00027397,120]
[402849666,1768932993684,500.0,0.00027397,120]
[402849667,1768932993810,488.01,0.00027397,120]
[402849668,1768932994848,500.0,0.00027397,120]
[402849670,1768932998200,500.0,0.00027397,120]
[402849671,1768932999414,612.91517649,0.00027397,120]
[402849672,1768933000209,582.2,0.00027397,120]
[402849673,1768933004468,500.0,0.00027397,120]
[402849674,1768933004725,500.0,0.00027397,120]
[402849675,1768933011838,500.0,0.00027397,120]
[402849676,1768933013408,648.16,0.00027397,120]
[402849677,1768933018745,500.0,0.00027397,120]
[402849678,1768933022127,500.0,0.00027397,120]
[402849679,1768933022290,500.0,0.00027397,120]
[402849680,1768933022920,500.0,0.00027397,120]
[402849681,1768933024687,500.0,0.00027397,120]
[402849682,1768933024914,500.0,0.00027397,120]
[402849683,1768933026238,500.0,0.00027397,120]
[402849684,1768933026479,500.0,0.00027397,120]
[402849685,1768933026801,500.0,0.00027397,120]
[402849686,1768933027403,216.25,0.00027397,120]
[402849687,1768933028364,500.0,0.00027397,120]
[402849688,1768933030209,500.0,0.00027397,120]
[402849689,1768933030472,500.0,0.00027397,120]
[402849690,1768933034480,500.0,0.00027397,120]
[402849691,1768933034711,500.0,0.00027397,120]
[402849692,1768933035854,500.0,0.00027397,120]
[402849693,1768933040758,500.0,0.00027397,120]
[402849694,1768933041047,500.0,0.00027397,120]
[402849695,1768933041252,500.0,0.00027397,120]
[402849696,1768933041564,500.0,0.00027397,120]
[402849697,1768933041817,500.0,0.00027397,120]
[402849698,1768933042063,207.92,0.00027397,120]
[402849699,1768933048966,242.80022406,0.00027397,120]
[402849700,1768933049954,543.64406781,0.00027397,120]
[402849701,1768933050328,557.44022238,0.00027397,120]
[402849702,1768933050757,500.0,0.00027397,120]
[402849703,1768933051000,500.0,0.00027397,120]
[402849704,1768933051863,500.0,0.00027397,120]
[402849705,1768933053289,500.0,0.00027397,120]
[402849706,1768933053539,500.0,0.00027397,120]
[402849707,1768933054115,500.0,0.00027397,120]
[402849710,1768933055929,500.0,0.00027397,120]
[402849711,1768933056666,500.0,0.00027397,120]
[402849712,1768933056780,500.0,0.00027397,120]
[402849713,1768933056950,500.0,0.00027397,120]
[402849714,1768933057184,500.0,0.00027397,120]
[402849715,1768933057412,500.0,0.00027397,120]
[402849716,1768933057647,182.92,0.00027397,120]
[402849717,1768933057759,500.0,0.00027397,120]
[402849718,1768933058062,500.0,0.00027397,120]
[402849719,1768933058899,293.31393947,0.00027397,120]
[402849720,1768933060095,500.0,0.00027397,120]
[402849721,1768933060329,500.0,0.00027397,120]
[402849722,1768933060571,355.76,0.00027397,120]
[402849723,1768933062405,500.0,0.00027397,120]
[402849724,1768933062641,500.0,0.00027397,120]
[402849725,1768933063831,500.0,0.00027397,120]
[402849726,1768933066302,500.0,0.00027397,120]
[402849727,1768933066546,500.0,0.00027397,120]
[402849728,1768933066823,500.0,0.00027397,120]
[402849729,1768933067439,515.37,0.00027397,120]
[402849730,1768933068995,500.0,0.00027397,120]
[402849731,1768933069235,161.84,0.00027397,120]
[402849732,1768933069570,500.0,0.00027397,120]
[402849733,1768933071354,546.26361381,0.00027397,120]
[402849734,1768933071462,500.0,0.00027397,120]
[402849735,1768933073317,500.0,0.00027397,120]
[402849736,1768933075705,500.0,0.00027397,120]
[402849737,1768933075941,575.75,0.00027397,120]
[402849738,1768933076075,500.0,0.00027397,120]
[402849739,1768933077160,500.0,0.00027397,120]
[402849740,1768933077405,500.0,0.00027397,120]
[402849741,1768933078319,185.78,0.00027397,120]
[402849742,1768933080708,500.0,0.00027397,120]
[402849743,1768933080954,500.0,0.00027397,120]
[402849744,1768933081075,537.8,0.00027397,120]
[402849745,1768933081361,500.0,0.00027397,120]
[402849746,1768933081623,587.06,0.00027397,120]
[402849747,1768933083975,500.0,0.00027397,120]
[402849748,1768933090827,500.0,0.00027397,120]
[402849749,1768933095799,500.0,0.00027397,120]
[402849750,1768933098441,500.0,0.00027397,120]
[402849751,1768933098556,500.0,0.00027397,120]
[402849752,1768933098674,500.0,0.00027397,120]
[402849753,1768933098781,599.81,0.00027397,120]
[402849754,1768933098932,153.67,0.00027397,120]
[402849755,1768933103046,500.0,0.00027397,120]
[402849756,1768933105292,500.0,0.00027397,120]
[402849757,1768933108633,500.0,0.00027397,120]
[402849758,1768933111096,500.0,0.00027397,120]
[402849759,1768933113627,500.0,0.00027397,120]
[402849760,1768933113991,386.56,0.00027397,120]
[402849761,1768933114430,550.19,0.00027397,120]
[402849762,1768933115958,500.0,0.00027397,120]
[402849763,1768933118960,500.0,0.00027397,120]
[402849764,1768933120941,500.0,0.00027397,120]
[402849765,1768933122820,500.0,0.00027397,120]
[402849766,1768933123062,515.35,0.00027397,120]
[402849767,1768933124376,500.0,0.00027397,120]
[402849768,1768933124487,500.0,0.00027397,120]
[402849769,1768933124847,500.0,0.00027397,120]
[402849770,1768933126757,500.0,0.00027397,120]
[402849771,1768933127428,500.0,0.00027397,120]
[402849772,1768933127679,152.51,0.00027397,120]
[402849773,1768933128699,500.0,0.00027397,120]
[402849774,1768933134940,500.0,0.00027397,120]
[402849775,1768933135333,520.73,0.00027397,120]
[402849776,1768933141734,500.0,0.00027397,120]
[402849777,1768933145208,500.0,0.00027397,120]
[402849778,1768933148558,500.0,0.00027397,120]
[402849779,1768933148807,500.0,0.00027397,120]
[402849781,1768933155267,500.0,0.00027397,120]
[402849782,1768933155653,500.0,0.00027397,120]
[402849783,1768933155887,359.3,0.00027397,120]
[402849784,1768933159458,500.0,0.00027397,120]
[402849785,1768933163597,500.0,0.00027397,120]
[402849786,1768933163944,500.0,0.00027397,120]
[402849787,1768933180955,500.0,0.00027397,120]
[402849788,1768933187734,500.0,0.00027397,120]
[402849789,1768933187990,240.72,0.00027397,120]
[402849790,1768933206558,500.0,0.00027397,120]
[402849791,1768933211215,500.0,0.00027397,120]
[402849792,1768933211464,500.0,0.00027397,120]
[402849793,1768933211721,608.92,0.00027397,120]
[402849794,1768933221195,500.0,0.00027397,120]
[402849795,1768933221438,500.0,0.00027397,120]
[402849796,1768933221685,388.33,0.00027397,120]
[402849797,1768933223857,500.0,0.00027397,120]
[402849798,1768933224116,298.73,0.00027397,120]
[402849799,1768933227411,500.0,0.00027397,120]
[402849800,1768933227717,500.0,0.00027397,120]